Workbook

Sheet 新区应进事项清单
A2: 附件2
A3: 新区级事项“八办”改革要求汇总表
A4: 序号 | B4: 部门名称 | C4: 通用目录名称 | D4: 子项名称 | E4: 事项类型 | F4: 法定时限 | G4: 承诺时限 | H4: 大厅办 | I4: 网上办 | L4: 一次办 | M4: 就近办 | N4: 马上办 | O4: 异地办 | P4: 自助机办 | Q4: 手机办 | R4: 廉洁办 | S4: EMS免费邮寄 | T4: 备注
I5: 原件预审 | J5: 原件核验 | K5: 全程网办
A6: =MAX(A$1:A5)+1 -> 1 | B6: 党工委组织部 | C6: 事业单位设立、变更、注销登记 | D6: 事业单位登记管理（变更登记） | E6: 行政许可 | F6: 30 | G6: 5 | H6: √ | J6: √ | L6: √ | M6: √ | O6: √ | P6: √ | Q6: √ | R6: √ | S6: √
D7: 事业单位登记管理（设立登记） | E7: 行政许可 | F7: 30 | G7: 5 | H7: √ | J7: √ | L7: √ | M7: √ | O7: √ | P7: √ | Q7: √ | R7: √ | S7: √
D8: 事业单位登记管理（注销登记） | E8: 行政许可 | F8: 30 | G8: 5 | H8: √ | J8: √ | L8: √ | M8: √ | O8: √ | P8: √ | Q8: √ | R8: √ | S8: √
A9: =MAX(A$1:A8)+1 -> 2 | B9: 党工委组织部 | C9: 事业单位设立、变更、注销登记 | D9: 事业单位登记管理（变更登记） | E9: 行政许可（自贸） | F9: 30 | G9: 5 | H9: √ | J9: √ | L9: √ | M9: √ | O9: √ | P9: √ | Q9: √ | R9: √ | S9: √
D10: 事业单位登记管理（设立登记） | E10: 行政许可（自贸） | F10: 30 | G10: 5 | H10: √ | J10: √ | L10: √ | M10: √ | O10: √ | P10: √ | Q10: √ | R10: √ | S10: √
D11: 事业单位登记管理（注销登记） | E11: 行政许可（自贸） | F11: 30 | G11: 5 | H11: √ | J11: √ | L11: √ | M11: √ | O11: √ | P11: √ | Q11: √ | R11: √ | S11: √
A12: =MAX(A$1:A11)+1 -> 3 | B12: 党工委组织部 | C12: 党组织关系转移 | D12: 党组织关系转移 | E12: 服务类 | F12: 90 | G12: 即办 | H12: √ | K12: √ | L12: √ | M12: √ | N12: √ | R12: √
A13: =MAX(A$1:A12)+1 -> 4 | B13: 宣传部 | C13: 社会艺术水平考级政策咨询 | D13: 社会艺术水平考级政策咨询 | E13: 服务类 | F13: 20 | G13: 即办 | H13: √ | K13: √ | L13: √ | M13: √ | N13: √ | O13: √ | P13: √ | Q13: √ | R13: √
A14: =MAX(A$1:A13)+1 -> 5 | B14: 宣传部 | C14: 立法决策信息服务 | D14: 立法决策信息服务 | E14: 服务类 | F14: 20 | G14: 即办 | H14: √ | K14: √ | L14: √ | M14: √ | N14: √ | O14: √ | P14: √ | Q14: √ | R14: √
A15: =MAX(A$1:A14)+1 -> 6 | B15: 宣传部 | C15: 艺术品经营活动政策咨询 | D15: 艺术品经营活动政策咨询 | E15: 服务类 | F15: 20 | G15: 即办 | H15: √ | K15: √ | L15: √ | M15: √ | N15: √ | O15: √ | P15: √ | Q15: √ | R15: √
A16: =MAX(A$1:A15)+1 -> 7 | B16: 宣传部 | C16: 非物质文化遗产代表性项目传承人、保护单位认定 | D16: 非物质文化遗产代表性项目传承人、保护单位认定 | E16: 服务类 | F16: 20 | G16: 即办 | H16: √ | K16: √ | L16: √ | M16: √ | N16: √ | O16: √ | P16: √ | Q16: √ | R16: √ | S16: √
A17: =MAX(A$1:A16)+1 -> 8 | B17: 政法工作部 | C17: 基层法律服务所变更名称、法定代表人或者负责人、合伙人、住所和修改章程审批 | D17: 基层法律服务所变更名称、法定代表人或者负责人、合伙人、住所和修改章程审批 | E17: 审核备案 | F17: 20 | G17: 10 | H17: √ | K17: √ | L17: √ | M17: √ | O17: √ | P17: √ | Q17: √ | R17: √ | S17: √
A18: =MAX(A$1:A17)+1 -> 9 | B18: 政法工作部 | C18: 12348公共法律服务 | D18: 12348公共法律服务 | E18: 服务类 | F18: 20 | G18: 即办 | H18: √ | K18: √ | L18: √ | M18: √ | N18: √ | O18: √ | P18: √ | Q18: √ | R18: √
A19: =MAX(A$1:A18)+1 -> 10 | B19: 政法工作部 | C19: 法律法规案例检索服务 | D19: 法律法规案例检索服务 | E19: 服务类 | F19: 20 | G19: 即办 | H19: √ | K19: √ | L19: √ | M19: √ | N19: √ | O19: √ | P19: √ | Q19: √ | R19: √
A20: =MAX(A$1:A19)+1 -> 11 | B20: 政法工作部 | C20: 法律服务机构、人员信息查询服务 | D20: 法律服务机构、人员信息查询服务 | E20: 服务类 | F20: 20 | G20: 即办 | H20: √ | K20: √ | L20: √ | M20: √ | N20: √ | O20: √ | P20: √ | Q20: √ | R20: √
A21: =MAX(A$1:A20)+1 -> 12 | B21: 政法工作部 | C21: 法律援助 | D21: 法律援助 | E21: 服务类 | F21: 20 | G21: 即办 | H21: √ | K21: √ | L21: √ | M21: √ | N21: √ | O21: √ | P21: √ | Q21: √ | R21: √
A22: =MAX(A$1:A21)+1 -> 13 | B22: 政法工作部 | C22: 法律知识普及服务 | D22: 法律知识普及服务 | E22: 服务类 | F22: 20 | G22: 即办 | H22: √ | K22: √ | L22: √ | M22: √ | N22: √ | O22: √ | P22: √ | Q22: √ | R22: √
A23: =MAX(A$1:A22)+1 -> 14 | B23: 政法工作部 | C23: 法律咨询（来电） | D23: 法律咨询（来电） | E23: 服务类 | F23: 20 | G23: 即办 | H23: √ | K23: √ | L23: √ | M23: √ | N23: √ | O23: √ | P23: √ | Q23: √ | R23: √
A24: =MAX(A$1:A23)+1 -> 15 | B24: 政法工作部 | C24: 法律咨询（来访） | D24: 法律咨询（来访） | E24: 服务类 | F24: 20 | G24: 即办 | H24: √ | K24: √ | L24: √ | M24: √ | N24: √ | O24: √ | P24: √ | Q24: √ | R24: √
A25: =MAX(A$1:A24)+1 -> 16 | B25: 政法工作部 | C25: 律师协会章程备案 | D25: 律师协会章程备案 | E25: 审核备案 | F25: 20 | G25: 即办 | H25: √ | J25: √ | L25: √ | N25: √ | O25: √ | P25: √ | Q25: √ | R25: √ | S25: √
A26: =MAX(A$1:A25)+1 -> 17 | B26: 政法工作部 | C26: 基层法律服务工作者执业证年度考核审批 | D26: 基层法律服务工作者执业证年度考核审批 | E26: 服务类 | F26: 20 | G26: 即办 | H26: √ | K26: √ | L26: √ | M26: √ | N26: √ | O26: √ | P26: √ | Q26: √ | R26: √ | S26: √
A27: =MAX(A$1:A26)+1 -> 18 | B27: 政法工作部 | C27: 基层法律服务所的年度考核审核 | D27: 基层法律服务所的年度考核审核 | E27: 服务类 | F27: 20 | G27: 7 | H27: √ | K27: √ | L27: √ | M27: √ | O27: √ | P27: √ | Q27: √ | R27: √ | S27: √
A28: =MAX(A$1:A27)+1 -> 19 | B28: 改革创新发展局 | C28: 市科技计划项目立项 | D28: 市科技计划项目立项 | E28: 审核备案 | F28: 180 | G28: 90 | H28: √ | I28: √ | L28: √ | O28: √ | R28: √ | S28: √
A29: =MAX(A$1:A28)+1 -> 20 | B29: 改革创新发展局 | C29: 直销企业及其分支机构设立和变更 | D29: 直销企业网点准入审核 | E29: 审核转报（许可类） | F29: 20 | G29: 即办 | H29: √ | K29: √ | L29: √ | M29: √ | N29: √ | O29: √ | P29: √ | Q29: √ | R29: √ | S29: √
A30: =MAX(A$1:A29)+1 -> 21 | B30: 改革创新发展局 | C30: 公共信用信息查询 | D30: 公共信用信息查询 | E30: 服务类 | F30: 20 | G30: 即办 | H30: √ | K30: √ | L30: √ | M30: √ | N30: √ | O30: √ | R30: √
A31: =MAX(A$1:A30)+1 -> 22 | B31: 改革创新发展局 | C31: 信用咨询 | D31: 信用咨询 | E31: 服务类 | F31: 20 | G31: 即办 | H31: √ | K31: √ | L31: √ | M31: √ | N31: √ | O31: √ | R31: √
A32: =MAX(A$1:A31)+1 -> 23 | B32: 改革创新发展局 | C32: 统计专业技术职务资格考试、评审咨询 | D32: 统计专业技术职务资格考试、评审咨询 | E32: 服务类 | F32: 20 | G32: 即办 | H32: √ | K32: √ | L32: √ | M32: √ | N32: √ | O32: √ | P32: √ | Q32: √ | R32: √
A33: =MAX(A$1:A32)+1 -> 24 | B33: 改革创新发展局 | C33: 提供统计信息咨询服务 | D33: 年度、季度、月度主要经济社会发展指标数据查询服务 | E33: 服务类 | F33: 20 | G33: 即办 | H33: √ | K33: √ | L33: √ | M33: √ | N33: √ | O33: √ | P33: √ | Q33: √ | R33: √
A34: =MAX(A$1:A33)+1 -> 25 | B34: 改革创新发展局 | C34: 成品油零售经营资格审批 | D34: 申领《成品油零售经营批准证书》 | E34: 行政许可 | F34: 20 | G34: 10 | H34: √ | I34: √ | L34: √ | O34: √ | P34: √ | Q34: √ | R34: √ | S34: √
D35: 遗失补发《成品油零售经营批准证书》 | E35: 行政许可 | F35: 20 | G35: 10 | H35: √ | I35: √ | L35: √ | O35: √ | P35: √ | Q35: √ | R35: √ | S35: √
D36: 成品油零售经营批准证书的变更 | E36: 行政许可 | F36: 20 | G36: 10 | H36: √ | I36: √ | L36: √ | O36: √ | P36: √ | Q36: √ | R36: √ | S36: √
D37: 加油站建设规划确认（立项） | E37: 行政许可 | F37: 20 | G37: 10 | H37: √ | I37: √ | L37: √ | O37: √ | P37: √ | Q37: √ | R37: √ | S37: √
A38: =MAX(A$1:A37)+1 -> 26 | B38: 改革创新发展局 | C38: 政府投资建设项目竣工验收 | D38: 市级政府投资建设项目竣工验收 | E38: 审核备案 | F38: 20 | G38: 10 | H38: √ | I38: √ | L38: √ | O38: √ | P38: √ | Q38: √ | R38: √ | S38: √
A39: =MAX(A$1:A38)+1 -> 27 | B39: 改革创新发展局 | C39: 可再生能源发展基金申请审批 | D39: 可再生能源发展基金申请转报 | E39: 审核转报（其他类） | F39: 20 | G39: 即办 | H39: √ | I39: √ | L39: √ | N39: √ | O39: √ | P39: √ | Q39: √ | R39: √ | S39: √
A40: =MAX(A$1:A39)+1 -> 28 | B40: 改革创新发展局 | C40: 省级科技惠民计划项目评审 | D40: 省级科技惠民计划项目推荐初审 | E40: 审核转报（其他类） | F40: 20 | G40: 10 | H40: √ | I40: √ | L40: √ | O40: √ | R40: √ | S40: √
A41: =MAX(A$1:A40)+1 -> 29 | B41: 改革创新发展局 | C41: 科技企业孵化器认定 | D41: 省级科技企业孵化器申报 | E41: 审核转报（其他类） | F41: 20 | G41: 10 | H41: √ | I41: √ | L41: √ | O41: √ | R41: √ | S41: √
A42: =MAX(A$1:A41)+1 -> 30 | B42: 改革创新发展局 | C42: 省级科技计划项目初审 | D42: 省级科技计划项目初审 | E42: 审核转报（其他类） | F42: 20 | G42: 10 | H42: √ | I42: √ | L42: √ | O42: √ | R42: √ | S42: √
A43: =MAX(A$1:A42)+1 -> 31 | B43: 改革创新发展局 | C43: 小型微型企业创业示范基地认定 | D43: 省级小型微型企业创业示范基地认定的初审 | E43: 审核转报（其他类） | F43: 20 | G43: 10 | H43: √ | I43: √ | L43: √ | O43: √ | R43: √ | S43: √
A44: =MAX(A$1:A43)+1 -> 32 | B44: 改革创新发展局 | C44: 中小企业公共服务示范平台认定 | D44: 省中小企业公共服务示范平台认定初审 | E44: 审核转报（其他类） | F44: 20 | G44: 10 | H44: √ | I44: √ | L44: √ | O44: √ | R44: √ | S44: √
A45: =MAX(A$1:A44)+1 -> 33 | B45: 改革创新发展局 | C45: 提供粮食政策和市场信息咨询服务 | D45: 提供粮食政策和市场信息咨询服务 | E45: 服务类 | F45: 20 | G45: 即办 | H45: √ | K45: √ | L45: √ | M45: √ | N45: √ | O45: √ | P45: √ | Q45: √ | R45: √ | S45: √
A46: =MAX(A$1:A45)+1 -> 34 | B46: 改革创新发展局 | C46: 粮食应急加工、供应、运输企业的确定 | D46: 粮食应急加工、供应、运输企业的确定 | E46: 服务类 | F46: 20 | G46: 即办 | H46: √ | K46: √ | L46: √ | M46: √ | N46: √ | O46: √ | P46: √ | Q46: √ | R46: √ | S46: √
A47: =MAX(A$1:A46)+1 -> 35 | B47: 改革创新发展局 | C47: 境外投资项目备案（3亿美元以下） | D47: 境外投资项目备案（3亿美元以下） | E47: 审核备案 | F47: 20 | G47: 即办 | H47: √ | K47: √ | L47: √ | M47: √ | N47: √ | O47: √ | R47: √ | S47: √
A48: =MAX(A$1:A47)+1 -> 36 | B48: 改革创新发展局 | C48: 地方政府投资项目和企业投资项目的资金申请报告审批 | D48: 地方政府投资项目和企业投资项目的资金申请报告审批 | E48: 服务类 | F48: 20 | G48: 即办 | H48: √ | I48: √ | L48: √ | N48: √ | O48: √ | P48: √ | Q48: √ | R48: √ | S48: √
A49: =MAX(A$1:A48)+1 -> 37 | B49: 改革创新发展局 | C49: 地方政府投资项目和企业投资项目的资金申请报告初审 | D49: 地方政府投资项目和企业投资项目的资金申请报告初审 | E49: 审核转报（其他类） | F49: 20 | G49: 即办 | H49: √ | I49: √ | L49: √ | N49: √ | O49: √ | P49: √ | Q49: √ | R49: √ | S49: √
A50: =MAX(A$1:A49)+1 -> 38 | B50: 改革创新发展局 | C50: 民用爆炸物品安全生产审核 | D50: 民用爆炸物品安全生产许可(新许可) | E50: 审核转报（许可类） | F50: 20 | G50: 即办 | H50: √ | I50: √ | L50: √ | N50: √ | O50: √ | P50: √ | Q50: √ | R50: √ | S50: √
A51: =MAX(A$1:A50)+1 -> 39 | B51: 改革创新发展局 | C51: 民用爆炸物品安全生产许可 | D51: 民用爆炸物品安全生产许可变更 | E51: 行政许可 | F51: 20 | G51: 即办 | H51: √ | I51: √ | L51: √ | N51: √ | O51: √ | P51: √ | Q51: √ | R51: √ | S51: √
D52: 民用爆炸物品安全生产许可延续（换证） | E52: 行政许可 | F52: 20 | G52: 即办 | H52: √ | I52: √ | L52: √ | N52: √ | O52: √ | P52: √ | Q52: √ | R52: √ | S52: √
D53: 民用爆炸物品安全生产许可证年检 | E53: 行政许可 | F53: 20 | G53: 即办 | H53: √ | I53: √ | L53: √ | N53: √ | O53: √ | P53: √ | Q53: √ | R53: √ | S53: √
D54: 民用爆炸物品安全生产许可新许可 | E54: 行政许可 | F54: 20 | G54: 即办 | H54: √ | I54: √ | L54: √ | N54: √ | O54: √ | P54: √ | Q54: √ | R54: √ | S54: √
A55: =MAX(A$1:A54)+1 -> 40 | B55: 改革创新发展局 | C55: 民用爆炸物品销售许可 | D55: 民用爆炸物品销售许可变更 | E55: 行政许可 | F55: 20 | G55: 即办 | H55: √ | I55: √ | L55: √ | N55: √ | O55: √ | P55: √ | Q55: √ | R55: √ | S55: √
D56: 民用爆炸物品销售许可换证（延续） | E56: 行政许可 | F56: 20 | G56: 即办 | H56: √ | I56: √ | L56: √ | N56: √ | O56: √ | P56: √ | Q56: √ | R56: √ | S56: √
D57: 民用爆炸物品销售许可年检 | E57: 行政许可 | F57: 20 | G57: 即办 | H57: √ | I57: √ | L57: √ | N57: √ | O57: √ | P57: √ | Q57: √ | R57: √ | S57: √
D58: 民用爆炸物品销售许可新许可 | E58: 行政许可 | F58: 20 | G58: 即办 | H58: √ | I58: √ | L58: √ | N58: √ | O58: √ | P58: √ | Q58: √ | R58: √ | S58: √
A59: =MAX(A$1:A58)+1 -> 41 | B59: 改革创新发展局 | C59: 民用爆炸物品销售许可审核 | D59: 民用爆炸物品销售许可(新许可） | E59: 审核转报（许可类） | F59: 20 | G59: 即办 | H59: √ | I59: √ | L59: √ | N59: √ | O59: √ | P59: √ | Q59: √ | R59: √ | S59: √
A60: =MAX(A$1:A59)+1 -> 42 | B60: 改革创新发展局 | C60: 以工代赈项目验收 | D60: 以工代赈项目验收（500万以上） | E60: 审核备案 | F60: 20 | G60: 即办 | H60: √ | I60: √ | L60: √ | N60: √ | O60: √ | P60: √ | Q60: √ | R60: √ | S60: √
A61: =MAX(A$1:A60)+1 -> 43 | B61: 改革创新发展局 | C61: 外国人来华工作许可 | D61: 外国人来华工作许可 | E61: 行政许可 （自贸） | F61: 20 | G61: 即办 | H61: √ | K61: √ | L61: √ | M61: √ | N61: √ | O61: √ | P61: √ | Q61: √ | R61: √ | S61: √
A62: =MAX(A$1:A61)+1 -> 44 | B62: 人社民政局 | C62: 建设公墓审核 | D62: 建设经营性公墓、城市公益性公墓审批 | E62: 审核转报（许可类） | F62: 20 | G62: 11 | H62: √ | K62: √ | L62: √ | M62: √ | O62: √ | P62: √ | Q62: √ | R62: √ | S62: √
A63: =MAX(A$1:A62)+1 -> 45 | B63: 人社民政局 | C63: 建设殡仪馆、火葬场、殡仪服务站、骨灰堂、经营性公墓、农村公益性墓地审批 | D63: 建设骨灰堂的审批 | E63: 行政许可 | F63: 20 | G63: 10 | H63: √ | I63: √ | L63: √ | O63: √ | P63: √ | Q63: √ | R63: √ | S63: √
D64: 建设火葬场的审批 | E64: 行政许可 | F64: 20 | G64: 10 | H64: √ | I64: √ | L64: √ | O64: √ | P64: √ | Q64: √ | R64: √ | S64: √
D65: 建设殡仪馆审批 | E65: 行政许可 | F65: 20 | G65: 10 | H65: √ | I65: √ | L65: √ | O65: √ | P65: √ | Q65: √ | R65: √ | S65: √
D66: 建设殡仪服务站的审批 | E66: 行政许可 | F66: 20 | G66: 10 | H66: √ | I66: √ | L66: √ | O66: √ | P66: √ | Q66: √ | R66: √ | S66: √
A67: =MAX(A$1:A66)+1 -> 46 | B67: 人社民政局 | C67: 宗教团体筹备、成立、变更、注销前审核 | D67: 宗教团体筹备、成立、变更、注销前审核 | E67: 行政许可 （自贸） | F67: 20 | G67: 10 | H67: √ | I67: √ | L67: √ | O67: √ | P67: √ | Q67: √ | R67: √ | S67: √
A68: =MAX(A$1:A67)+1 -> 47 | B68: 人社民政局 | C68: 举行大型宗教活动审批 | D68: 举行大型宗教活动审批 | E68: 行政许可 （自贸） | F68: 20 | G68: 10 | H68: √ | I68: √ | L68: √ | O68: √ | P68: √ | Q68: √ | R68: √ | S68: √
A69: =MAX(A$1:A68)+1 -> 48 | B69: 人社民政局 | C69: 慈善工作政策咨询 | D69: 慈善工作政策咨询 | E69: 服务类 | F69: 20 | G69: 即办 | H69: √ | K69: √ | L69: √ | M69: √ | N69: √ | O69: √ | P69: √ | Q69: √ | R69: √
A70: =MAX(A$1:A69)+1 -> 49 | B70: 人社民政局 | C70: 地名属性和文化信息服务 | D70: 地名属性和文化信息服务 | E70: 服务类 | F70: 20 | G70: 即办 | H70: √ | K70: √ | L70: √ | M70: √ | N70: √ | O70: √ | P70: √ | Q70: √ | R70: √
A71: =MAX(A$1:A70)+1 -> 50 | B71: 人社民政局 | C71: 社会福利中心养老咨询 | D71: 社会福利中心养老咨询 | E71: 服务类 | F71: 20 | G71: 即办 | H71: √ | K71: √ | L71: √ | M71: √ | N71: √ | O71: √ | P71: √ | Q71: √ | R71: √
A72: =MAX(A$1:A71)+1 -> 51 | B72: 人社民政局 | C72: 退役士兵安置政策咨询 | D72: 退役士兵安置政策咨询 | E72: 服务类 | F72: 20 | G72: 即办 | H72: √ | K72: √ | L72: √ | M72: √ | N72: √ | O72: √ | P72: √ | Q72: √ | R72: √
A73: =MAX(A$1:A72)+1 -> 52 | B73: 人社民政局 | C73: 优抚政策宣传和咨询 | D73: 优抚政策宣传和咨询 | E73: 服务类 | F73: 20 | G73: 即办 | H73: √ | K73: √ | L73: √ | M73: √ | N73: √ | O73: √ | P73: √ | Q73: √ | R73: √
A74: =MAX(A$1:A73)+1 -> 53 | B74: 人社民政局 | C74: 最低生活保障政策咨询 | D74: 最低生活保障政策咨询 | E74: 服务类 | F74: 20 | G74: 即办 | H74: √ | K74: √ | L74: √ | M74: √ | N74: √ | O74: √ | P74: √ | Q74: √ | R74: √
A75: =MAX(A$1:A74)+1 -> 54 | B75: 人社民政局 | C75: 工伤认定 | D75: 工伤认定 | E75: 服务类 | F75: 95 | G75: 60 | H75: √ | J75: √ | M75: √ | R75: √ | S75: √
A76: =MAX(A$1:A75)+1 -> 55 | B76: 人社民政局 | C76: 华侨以及居住在香港、澳门、台湾地区的中国公民在内地收养登记、解除收养关系登记 | D76: 华侨以及居住在香港、澳门、台湾地区的中国公民在内地收养登记、解除收养关系登记 | E76: 服务类 | F76: 20 | G76: 即办 | H76: √ | K76: √ | L76: √ | M76: √ | N76: √ | O76: √ | P76: √ | Q76: √ | R76: √ | S76: √
A77: =MAX(A$1:A76)+1 -> 56 | B77: 人社民政局 | C77: 旧伤复发申请确认 | D77: 旧伤复发申请确认 | E77: 服务类 | F77: 20 | G77: 即办 | H77: √ | K77: √ | L77: √ | M77: √ | N77: √ | O77: √ | P77: √ | Q77: √ | R77: √ | S77: √
A78: =MAX(A$1:A77)+1 -> 57 | B78: 人社民政局 | C78: 军队移交政府安置的军队离休退休干部（士官）丧葬费给付 | D78: 军队移交政府安置的军队离休退休干部（士官）丧葬费给付 | E78: 服务类 | F78: 20 | G78: 即办 | H78: √ | K78: √ | L78: √ | M78: √ | N78: √ | O78: √ | P78: √ | Q78: √ | R78: √ | S78: √
A79: =MAX(A$1:A78)+1 -> 58 | B79: 人社民政局 | C79: 开展宗教教育培训审批 | D79: 开展宗教教育培训审批 | E79: 行政许可 | F79: 20 | G79: 即办 | H79: √ | K79: √ | L79: √ | M79: √ | N79: √ | O79: √ | P79: √ | Q79: √ | R79: √ | S79: √
A80: =MAX(A$1:A79)+1 -> 59 | B80: 人社民政局 | C80: 烈士评定审核 | D80: 烈士评定审核 | E80: 审核转报（其他类） | F80: 20 | G80: 即办 | H80: √ | K80: √ | L80: √ | M80: √ | N80: √ | O80: √ | P80: √ | Q80: √ | R80: √ | S80: √
A81: =MAX(A$1:A80)+1 -> 60 | B81: 人社民政局 | C81: 领取国家职业资格证书 | D81: 领取国家职业资格证书 | E81: 服务类 | F81: 20 | G81: 即办 | H81: √ | K81: √ | L81: √ | M81: √ | N81: √ | O81: √ | P81: √ | Q81: √ | R81: √ | S81: √
A82: =MAX(A$1:A81)+1 -> 61 | B82: 人社民政局 | C82: 民族成份变更审核 | D82: 民族成份变更审核 | E82: 审核备案 | F82: 20 | G82: 即办 | H82: √ | K82: √ | L82: √ | M82: √ | N82: √ | O82: √ | P82: √ | Q82: √ | R82: √ | S82: √
A83: =MAX(A$1:A82)+1 -> 62 | B83: 人社民政局 | C83: 民族政策及法律法规咨询 | D83: 民族政策及法律法规咨询 | E83: 服务类 | F83: 20 | G83: 即办 | H83: √ | K83: √ | L83: √ | M83: √ | N83: √ | O83: √ | P83: √ | Q83: √ | R83: √ | S83: √
A84: =MAX(A$1:A83)+1 -> 63 | B84: 人社民政局 | C84: 企业经济性裁员备案 | D84: 企业经济性裁员备案 | E84: 审核备案 | F84: 20 | G84: 即办 | H84: √ | K84: √ | L84: √ | M84: √ | N84: √ | O84: √ | P84: √ | Q84: √ | R84: √ | S84: √
A85: =MAX(A$1:A84)+1 -> 64 | B85: 人社民政局 | C85: 伤残抚恤关系接收、转移的审核 | D85: 伤残抚恤关系接收、转移的审核 | E85: 审核转报（其他类） | F85: 20 | G85: 即办 | H85: √ | K85: √ | L85: √ | M85: √ | N85: √ | O85: √ | P85: √ | Q85: √ | R85: √ | S85: √
A86: =MAX(A$1:A85)+1 -> 65 | B86: 人社民政局 | C86: 申报国家职业技能鉴定 | D86: 申报国家职业技能鉴定 | E86: 服务类 | F86: 20 | G86: 即办 | H86: √ | K86: √ | L86: √ | M86: √ | N86: √ | O86: √ | P86: √ | Q86: √ | R86: √ | S86: √
A87: =MAX(A$1:A86)+1 -> 66 | B87: 人社民政局 | C87: 退出现役的军人残疾等级和残疾性质的审核 | D87: 退出现役的军人残疾等级和残疾性质的审核 | E87: 审核转报（其他类） | F87: 20 | G87: 即办 | H87: √ | K87: √ | L87: √ | M87: √ | N87: √ | O87: √ | P87: √ | Q87: √ | R87: √ | S87: √
A88: =MAX(A$1:A87)+1 -> 67 | B88: 人社民政局 | C88: 邀请以其他身份入境的外国宗教教职人员讲经、讲道审批 | D88: 邀请以其他身份入境的外国宗教教职人员讲经、讲道审批 | E88: 行政许可 | F88: 20 | G88: 即办 | H88: √ | K88: √ | L88: √ | M88: √ | N88: √ | O88: √ | P88: √ | Q88: √ | R88: √ | S88: √
A89: =MAX(A$1:A88)+1 -> 68 | B89: 人社民政局 | C89: 因战、因公致残残疾等级评定 | D89: 因战、因公致残残疾等级评定 | E89: 服务类 | F89: 20 | G89: 即办 | H89: √ | K89: √ | L89: √ | M89: √ | N89: √ | O89: √ | P89: √ | Q89: √ | R89: √ | S89: √
A90: =MAX(A$1:A89)+1 -> 69 | B90: 人社民政局 | C90: 职称申报评审 | D90: 职称申报评审 | E90: 服务类 | F90: 20 | G90: 即办 | H90: √ | K90: √ | L90: √ | M90: √ | N90: √ | O90: √ | P90: √ | Q90: √ | R90: √ | S90: √
A91: =MAX(A$1:A90)+1 -> 70 | B91: 人社民政局 | C91: 职称证书办理 | D91: 职称证书办理 | E91: 服务类 | F91: 20 | G91: 即办 | H91: √ | K91: √ | L91: √ | M91: √ | N91: √ | O91: √ | P91: √ | Q91: √ | R91: √ | S91: √
A92: =MAX(A$1:A91)+1 -> 71 | B92: 人社民政局 | C92: 专项职业能力证书核发 | D92: 专项职业能力证书核发 | E92: 服务类 | F92: 20 | G92: 即办 | H92: √ | K92: √ | L92: √ | M92: √ | N92: √ | O92: √ | P92: √ | Q92: √ | R92: √ | S92: √
A93: =MAX(A$1:A92)+1 -> 72 | B93: 人社民政局 | C93: 专业技术人员继续教育基地认证 | D93: 专业技术人员继续教育基地认证 | E93: 审核备案 | F93: 20 | G93: 10 | H93: √ | I93: √ | L93: √ | O93: √ | P93: √ | Q93: √ | R93: √ | S93: √
A94: =MAX(A$1:A93)+1 -> 73 | B94: 人社民政局 | C94: 宗教政策及法律法规咨询 | D94: 宗教政策及法律法规咨询 | E94: 服务类 | F94: 20 | G94: 即办 | H94: √ | K94: √ | L94: √ | M94: √ | N94: √ | O94: √ | P94: √ | Q94: √ | R94: √ | S94: √
A95: =MAX(A$1:A94)+1 -> 74 | B95: 人社民政局 | C95: 在其他固定宗教活动处所内改建或者新建建筑物（改变现有布局和功能的）审批 | D95: 在其他固定宗教活动处所内改建或者新建建筑物（改变现有布局和功能的）审批 | E95: 行政许可 | F95: 20 | G95: 10 | H95: √ | I95: √ | L95: √ | M95: √ | O95: √ | P95: √ | Q95: √ | R95: √ | S95: √
A96: =MAX(A$1:A95)+1 -> 75 | B96: 人社民政局 | C96: 市宗教团体成立、变更、注销前审批 | E96: 行政许可 | F96: 20 | G96: 10 | H96: √ | I96: √ | L96: √ | M96: √ | O96: √ | P96: √ | Q96: √ | R96: √ | S96: √
A97: =MAX(A$1:A96)+1 -> 76 | B97: 人社民政局 | C97: 市宗教团体接受境外组织和个人捐赠审批 | D97: 市宗教团体接受境外组织和个人捐赠审批 | E97: 行政许可 | F97: 20 | G97: 即办 | H97: √ | K97: √ | L97: √ | M97: √ | N97: √ | O97: √ | P97: √ | Q97: √ | R97: √ | S97: √
A98: =MAX(A$1:A97)+1 -> 77 | B98: 人社民政局 | C98: 举行大型宗教活动审批 | D98: 举行大型宗教活动审批 | E98: 行政许可 | F98: 20 | G98: 10 | H98: √ | I98: √ | L98: √ | M98: √ | O98: √ | P98: √ | Q98: √ | R98: √ | S98: √
A99: =MAX(A$1:A98)+1 -> 78 | B99: 人社民政局 | C99: 编印、发送宗教内部资料性出版物或者印刷其他宗教用品审批 | D99: 编印、发送宗教内部资料性出版物或者印刷其他宗教用品审批 | E99: 审核备案 | F99: 20 | G99: 即办 | H99: √ | K99: √ | L99: √ | M99: √ | N99: √ | O99: √ | P99: √ | Q99: √ | R99: √ | S99: √
A100: =MAX(A$1:A99)+1 -> 79 | B100: 人社民政局 | C100: 宗教教职人员跨市（区）主持或者参与主持宗教活动备案 | D100: 宗教教职人员跨市（区）主持或者参与主持宗教活动备案 | E100: 审核备案 | F100: 20 | G100: 即办 | H100: √ | K100: √ | L100: √ | M100: √ | N100: √ | O100: √ | P100: √ | Q100: √ | R100: √ | S100: √
A101: =MAX(A$1:A100)+1 -> 80 | B101: 人社民政局 | C101: 宗教教职人员跨市（区）担任或者离任宗教活动场所主要教职备案 | D101: 宗教教职人员跨市（区）担任或者离任宗教活动场所主要教职备案 | E101: 审核备案 | F101: 20 | G101: 即办 | H101: √ | K101: √ | L101: √ | M101: √ | N101: √ | O101: √ | P101: √ | Q101: √ | R101: √ | S101: √
A102: =MAX(A$1:A101)+1 -> 81 | B102: 人社民政局 | C102: 在寺观教堂内改建或者新建建筑物（改变现有布局和功能的）审核 | D102: 在寺观教堂内改建或者新建建筑物（改变现有布局和功能的）审核 | E102: 审核转报（许可类） | F102: 20 | G102: 10 | H102: √ | I102: √ | L102: √ | O102: √ | P102: √ | Q102: √ | R102: √ | S102: √
A103: =MAX(A$1:A102)+1 -> 82 | B103: 人社民政局 | C103: 筹备设立寺观教堂审核 | D103: 筹备设立寺观教堂审核 | E103: 审核转报（许可类） | F103: 20 | G103: 10 | H103: √ | I103: √ | L103: √ | O103: √ | P103: √ | Q103: √ | R103: √ | S103: √
A104: =MAX(A$1:A103)+1 -> 83 | B104: 人社民政局 | C104: 孤儿基本生活保障政策咨询 | D104: 孤儿基本生活保障政策咨询 | E104: 服务类 | F104: 20 | G104: 即办 | H104: √ | K104: √ | L104: √ | M104: √ | N104: √ | O104: √ | P104: √ | Q104: √ | R104: √
A105: =MAX(A$1:A104)+1 -> 84 | B105: 人社民政局 | C105: 宗教团体基本信息查询 | D105: 市级宗教团体基本信息查询 | E105: 服务类 | F105: 20 | G105: 即办 | H105: √ | K105: √ | L105: √ | M105: √ | N105: √ | O105: √ | P105: √ | Q105: √ | R105: √
A106: =MAX(A$1:A105)+1 -> 85 | B106: 人社民政局 | C106: 参加企业职工养老保险的职工政策性提前退休审批 | D106: 参加企业职工基本养老保险的职工政策性提前退休审批 | E106: 审核备案 | F106: 60 | G106: 30 | H106: √ | I106: √ | L106: √ | R106: √
A107: =MAX(A$1:A106)+1 -> 86 | B107: 人社民政局 | C107: 参加企业职工基本养老保险退休核准 | D107: 因病提前退休 | E107: 服务类 | F107: 60 | G107: 60 | H107: √ | I107: √ | L107: √ | R107: √
D108: 正常退休 | E108: 服务类 | F108: 20 | G108: 即办 | H108: √ | I108: √ | L108: √ | N108: √ | R108: √
D109: 特殊工种提前退休 | E109: 服务类 | F109: 60 | G109: 60 | H109: √ | I109: √ | L109: √ | R109: √
A110: =MAX(A$1:A109)+1 -> 87 | B110: 人社民政局 | C110: 养老服务政策咨询 | D110: 养老服务政策咨询 | E110: 服务类 | F110: 20 | G110: 即办 | H110: √ | J110: √ | L110: √ | N110: √ | R110: √ | S110: √
A111: =MAX(A$1:A110)+1 -> 88 | B111: 人社民政局 | C111: 伤残疾等级认定 | D111: 伤残疾等级认定 | E111: 审核转报（其他类） | F111: 20 | G111: 即办 | H111: √ | K111: √ | L111: √ | M111: √ | N111: √ | O111: √ | P111: √ | Q111: √ | R111: √
A112: =MAX(A$1:A111)+1 -> 89 | B112: 西咸养老保险经办处 | C112: 城镇企业职工基本养老保险参保登记 | D112: 城镇企业职工基本养老保险参保登记 | E112: 服务类 | F112: 20 | G112: 即办 | H112: √ | J112: √ | L112: √ | N112: √ | R112: √ | S112: √
A113: =MAX(A$1:A112)+1 -> 90 | B113: 西咸养老保险经办处 | C113: 城镇企业职工基本养老保险信息查询 | D113: 城镇企业职工基本养老保险信息查询 | E113: 服务类 | F113: 20 | G113: 即办 | H113: √ | J113: √ | L113: √ | N113: √ | R113: √ | S113: √
A114: =MAX(A$1:A113)+1 -> 91 | B114: 社保中心 | C114: 失业保险参保登记 | D114: 失业保险参保登记 | E114: 服务类 | F114: 20 | G114: 即办 | H114: √ | J114: √ | L114: √ | N114: √ | O114: √ | P114: √ | Q114: √ | R114: √ | S114: √
A115: =MAX(A$1:A114)+1 -> 92 | B115: 社保中心 | C115: 失业保险参保信息变更登记 | D115: 失业保险参保信息变更登记 | E115: 服务类 | F115: 20 | G115: 即办 | H115: √ | J115: √ | L115: √ | N115: √ | O115: √ | P115: √ | Q115: √ | R115: √ | S115: √
A116: =MAX(A$1:A115)+1 -> 93 | B116: 社保中心 | C116: 失业保险待遇核准支付 | D116: 失业保险待遇核准支付 | E116: 服务类 | F116: 55 | G116: 即办 | H116: √ | J116: √ | L116: √ | N116: √ | O116: √ | P116: √ | Q116: √ | R116: √ | S116: √
A117: =MAX(A$1:A116)+1 -> 94 | B117: 社保中心 | C117: 失业保险关系转移接续 | D117: 失业保险关系转移接续 | E117: 服务类 | F117: 20 | G117: 即办 | H117: √ | J117: √ | L117: √ | N117: √ | O117: √ | P117: √ | Q117: √ | R117: √ | S117: √
A118: =MAX(A$1:A117)+1 -> 95 | B118: 社保中心 | C118: 失业保险缴费基数申报与核定 | D118: 失业保险缴费基数申报与核定 | E118: 服务类 | F118: 20 | G118: 即办 | H118: √ | J118: √ | L118: √ | N118: √ | O118: √ | P118: √ | Q118: √ | R118: √ | S118: √
A119: =MAX(A$1:A118)+1 -> 96 | B119: 社保中心 | C119: 机关事业单位基本养老保险待遇核准支付 | D119: 机关事业单位基本养老保险待遇核准支付 | E119: 服务类 | F119: 20 | G119: 即办 | H119: √ | J119: √ | L119: √ | N119: √ | O119: √ | P119: √ | Q119: √ | R119: √ | S119: √
A120: =MAX(A$1:A119)+1 -> 97 | B120: 社保中心 | C120: 城乡居民基本养老保险参保登记 | D120: 城乡居民基本养老保险参保登记 | E120: 服务类 | F120: 20 | G120: 即办 | H120: √ | J120: √ | L120: √ | N120: √ | O120: √ | P120: √ | Q120: √ | R120: √ | S120: √
A121: =MAX(A$1:A120)+1 -> 98 | B121: 社保中心 | C121: 城乡居民基本养老保险注销登记 | D121: 城乡居民基本养老保险注销登记 | E121: 服务类 | F121: 60 | G121: 即办 | H121: √ | J121: √ | L121: √ | N121: √ | O121: √ | P121: √ | Q121: √ | R121: √ | S121: √
A122: =MAX(A$1:A121)+1 -> 99 | B122: 社保中心 | C122: 城乡居民基本养老保险资格认证 | D122: 城乡居民基本养老保险资格认证 | E122: 服务类 | F122: 20 | G122: 即办 | H122: √ | J122: √ | L122: √ | N122: √ | O122: √ | P122: √ | Q122: √ | R122: √ | S122: √
A123: =MAX(A$1:A122)+1 -> 100 | B123: 社保中心 | C123: 机关事业信息查询 | D123: 机关事业信息查询 | E123: 服务类 | F123: 20 | G123: 即办 | H123: √ | J123: √ | L123: √ | N123: √ | O123: √ | P123: √ | Q123: √ | R123: √ | S123: √
A124: =MAX(A$1:A123)+1 -> 101 | B124: 社保中心 | C124: 机关事业单位参保人员参保证明打印 | D124: 机关事业单位参保人员参保证明打印 | E124: 服务类 | F124: 20 | G124: 即办 | H124: √ | J124: √ | L124: √ | N124: √ | O124: √ | P124: √ | Q124: √ | R124: √ | S124: √
A125: =MAX(A$1:A124)+1 -> 102 | B125: 社保中心 | C125: 机关事业单位参保人员养老关系转移 | D125: 机关事业单位参保人员养老关系转移 | E125: 服务类 | F125: 20 | G125: 即办 | H125: √ | J125: √ | L125: √ | N125: √ | O125: √ | P125: √ | Q125: √ | R125: √ | S125: √
A126: =MAX(A$1:A125)+1 -> 103 | B126: 社保中心 | C126: 机关事业单位离退休人员养老保险待遇领取资格认证 | D126: 机关事业单位离退休人员养老保险待遇领取资格认证 | E126: 服务类 | F126: 20 | G126: 即办 | H126: √ | J126: √ | L126: √ | N126: √ | O126: √ | P126: √ | Q126: √ | R126: √ | S126: √
A127: =MAX(A$1:A126)+1 -> 104 | B127: 社保中心 | C127: 城乡居民基本养老保险相关证明 | D127: 城乡居民基本养老保险相关证明 | E127: 服务类 | F127: 20 | G127: 即办 | H127: √ | J127: √ | L127: √ | N127: √ | O127: √ | P127: √ | Q127: √ | R127: √ | S127: √
A128: =MAX(A$1:A127)+1 -> 105 | B128: 社保中心 | C128: 城乡居民基本养老保险关系转移 | D128: 城乡居民基本养老保险关系转移 | E128: 服务类 | F128: 60 | G128: 即办 | H128: √ | J128: √ | L128: √ | N128: √ | O128: √ | P128: √ | Q128: √ | R128: √ | S128: √
A129: =MAX(A$1:A128)+1 -> 106 | B129: 社保中心 | C129: 城镇居民基本医疗保险参保登记 | D129: 城镇居民基本医疗保险参保登记 | E129: 公共服务 | F129: 20 | G129: 即办 | H129: √ | J129: √ | L129: √ | N129: √ | O129: √ | P129: √ | Q129: √ | R129: √ | S129: √
A130: =MAX(A$1:A129)+1 -> 107 | B130: 社保中心 | C130: 城镇居民基本医疗保险门诊慢性病、特殊病审批 | D130: 城镇居民基本医疗保险门诊慢性病、特殊病审批 | E130: 公共服务 | F130: 20 | G130: 即办 | H130: √ | J130: √ | L130: √ | N130: √ | O130: √ | P130: √ | Q130: √ | R130: √ | S130: √
A131: =MAX(A$1:A130)+1 -> 108 | B131: 社保中心 | C131: 城镇居民基本医疗保险待遇发放 | D131: 城镇居民基本医疗保险待遇发放 | E131: 公共服务 | F131: 20 | G131: 即办 | H131: √ | J131: √ | L131: √ | N131: √ | O131: √ | P131: √ | Q131: √ | R131: √ | S131: √
A132: =MAX(A$1:A131)+1 -> 109 | B132: 社保中心 | C132: “四险”单位立户登记 | D132: “四险”单位立户登记 | E132: 公共服务 | F132: 20 | G132: 即办 | H132: √ | J132: √ | L132: √ | N132: √ | O132: √ | P132: √ | Q132: √ | R132: √ | S132: √
A133: =MAX(A$1:A132)+1 -> 110 | B133: 社保中心 | C133: “四险”单位缴费申报 | D133: “四险”单位缴费申报 | E133: 公共服务 | F133: 20 | G133: 即办 | H133: √ | J133: √ | L133: √ | N133: √ | O133: √ | P133: √ | Q133: √ | R133: √ | S133: √
A134: =MAX(A$1:A133)+1 -> 111 | B134: 社保中心 | C134: “四险”补缴 | D134: “四险”补缴 | E134: 公共服务 | F134: 20 | G134: 即办 | H134: √ | J134: √ | L134: √ | N134: √ | O134: √ | P134: √ | Q134: √ | R134: √ | S134: √
A135: =MAX(A$1:A134)+1 -> 112 | B135: 社保中心 | C135: “四险”单位年审 | D135: “四险”单位年审 | E135: 公共服务 | F135: 20 | G135: 即办 | H135: √ | J135: √ | L135: √ | N135: √ | O135: √ | P135: √ | Q135: √ | R135: √ | S135: √
A136: =MAX(A$1:A135)+1 -> 113 | B136: 社保中心 | C136: “四险”单位信息变更 | D136: “四险”单位信息变更 | E136: 公共服务 | F136: 20 | G136: 即办 | H136: √ | J136: √ | L136: √ | N136: √ | O136: √ | P136: √ | Q136: √ | R136: √ | S136: √
A137: =MAX(A$1:A136)+1 -> 114 | B137: 社保中心 | C137: “四险”单位注销 | D137: “四险”单位注销 | E137: 公共服务 | F137: 20 | G137: 即办 | H137: √ | J137: √ | L137: √ | N137: √ | O137: √ | P137: √ | Q137: √ | R137: √ | S137: √
A138: =MAX(A$1:A137)+1 -> 115 | B138: 社保中心 | C138: “四险”个人信息变更 | D138: “四险”个人信息变更 | E138: 公共服务 | F138: 20 | G138: 即办 | H138: √ | J138: √ | L138: √ | N138: √ | O138: √ | P138: √ | Q138: √ | R138: √ | S138: √
A139: =MAX(A$1:A138)+1 -> 116 | B139: 社保中心 | C139: 医疗保险统筹范围外转入 | D139: 医疗保险统筹范围外转入 | E139: 公共服务 | F139: 20 | G139: 即办 | H139: √ | J139: √ | L139: √ | N139: √ | O139: √ | P139: √ | Q139: √ | R139: √ | S139: √
A140: =MAX(A$1:A139)+1 -> 117 | B140: 社保中心 | C140: 医疗保险统筹范围外转出 | D140: 医疗保险统筹范围外转出 | E140: 公共服务 | F140: 20 | G140: 即办 | H140: √ | J140: √ | L140: √ | N140: √ | O140: √ | P140: √ | Q140: √ | R140: √ | S140: √
A141: =MAX(A$1:A140)+1 -> 118 | B141: 社保中心 | C141: 医疗保险从军队转入 | D141: 医疗保险从军队转入 | E141: 公共服务 | F141: 20 | G141: 即办 | H141: √ | J141: √ | L141: √ | N141: √ | O141: √ | P141: √ | Q141: √ | R141: √ | S141: √
A142: =MAX(A$1:A141)+1 -> 119 | B142: 社保中心 | C142: 失业保险统筹范围外转入 | D142: 失业保险统筹范围外转入 | E142: 公共服务 | F142: 20 | G142: 即办 | H142: √ | J142: √ | L142: √ | N142: √ | O142: √ | P142: √ | Q142: √ | R142: √ | S142: √
A143: =MAX(A$1:A142)+1 -> 120 | B143: 社保中心 | C143: 失业保险统筹范围外转出 | D143: 失业保险统筹范围外转出 | E143: 公共服务 | F143: 20 | G143: 即办 | H143: √ | J143: √ | L143: √ | N143: √ | O143: √ | P143: √ | Q143: √ | R143: √ | S143: √
A144: =MAX(A$1:A143)+1 -> 121 | B144: 社保中心 | C144: 参保证明打印 | D144: 参保证明打印 | E144: 公共服务 | F144: 20 | G144: 即办 | H144: √ | J144: √ | L144: √ | N144: √ | O144: √ | P144: √ | Q144: √ | R144: √ | S144: √
A145: =MAX(A$1:A144)+1 -> 122 | B145: 社保中心 | C145: 医疗保险住院类零星报销 | D145: 医疗保险住院类零星报销 | E145: 公共服务 | F145: 20 | G145: 即办 | H145: √ | J145: √ | L145: √ | N145: √ | O145: √ | P145: √ | Q145: √ | R145: √ | S145: √
A146: =MAX(A$1:A145)+1 -> 123 | B146: 社保中心 | C146: 医疗保险特检特治零星报销 | D146: 医疗保险特检特治零星报销 | E146: 公共服务 | F146: 20 | G146: 即办 | H146: √ | J146: √ | L146: √ | N146: √ | O146: √ | P146: √ | Q146: √ | R146: √ | S146: √
A147: =MAX(A$1:A146)+1 -> 124 | B147: 社保中心 | C147: 医疗保险跨省异地就医登记备案 | D147: 医疗保险跨省异地就医登记备案 | E147: 公共服务 | F147: 20 | G147: 即办 | H147: √ | J147: √ | L147: √ | N147: √ | O147: √ | P147: √ | Q147: √ | R147: √ | S147: √
A148: =MAX(A$1:A147)+1 -> 125 | B148: 社保中心 | C148: 医疗保险慢性病申请 | D148: 医疗保险慢性病申请 | E148: 公共服务 | F148: 20 | G148: 即办 | H148: √ | J148: √ | L148: √ | N148: √ | O148: √ | P148: √ | Q148: √ | R148: √ | S148: √
A149: =MAX(A$1:A148)+1 -> 126 | B149: 社保中心 | C149: 医疗保险门诊慢性病报销 | D149: 医疗保险门诊慢性病报销 | E149: 公共服务 | F149: 20 | G149: 即办 | H149: √ | J149: √ | L149: √ | N149: √ | O149: √ | P149: √ | Q149: √ | R149: √ | S149: √
A150: =MAX(A$1:A149)+1 -> 127 | B150: 社保中心 | C150: 医疗保险门诊特殊病审批 | D150: 医疗保险门诊特殊病审批 | E150: 公共服务 | F150: 20 | G150: 即办 | H150: √ | J150: √ | L150: √ | N150: √ | O150: √ | P150: √ | Q150: √ | R150: √ | S150: √
A151: =MAX(A$1:A150)+1 -> 128 | B151: 社保中心 | C151: 医疗保险门诊特殊病报销 | D151: 医疗保险门诊特殊病报销 | E151: 公共服务 | F151: 20 | G151: 即办 | H151: √ | J151: √ | L151: √ | N151: √ | O151: √ | P151: √ | Q151: √ | R151: √ | S151: √
A152: =MAX(A$1:A151)+1 -> 129 | B152: 社保中心 | C152: 生育保险零星报销 | D152: 生育保险零星报销 | E152: 公共服务 | F152: 20 | G152: 即办 | H152: √ | J152: √ | L152: √ | N152: √ | O152: √ | P152: √ | Q152: √ | R152: √ | S152: √
A153: =MAX(A$1:A152)+1 -> 130 | B153: 社保中心 | C153: 生育津贴申请 | D153: 生育津贴申请 | E153: 公共服务 | F153: 20 | G153: 即办 | H153: √ | J153: √ | L153: √ | N153: √ | O153: √ | P153: √ | Q153: √ | R153: √ | S153: √
A154: =MAX(A$1:A153)+1 -> 131 | B154: 社保中心 | C154: 工伤事故申告 | D154: 工伤事故申告 | E154: 公共服务 | F154: 20 | G154: 即办 | H154: √ | J154: √ | L154: √ | N154: √ | O154: √ | P154: √ | Q154: √ | R154: √ | S154: √
A155: =MAX(A$1:A154)+1 -> 132 | B155: 社保中心 | C155: 工伤保险待遇报销受理 | D155: 工伤保险待遇报销受理 | E155: 公共服务 | F155: 20 | G155: 即办 | H155: √ | J155: √ | L155: √ | N155: √ | O155: √ | P155: √ | Q155: √ | R155: √ | S155: √
A156: =MAX(A$1:A155)+1 -> 133 | B156: 社保中心 | C156: 失业金申请 | D156: 失业金申请 | E156: 公共服务 | F156: 20 | G156: 即办 | H156: √ | J156: √ | L156: √ | N156: √ | O156: √ | P156: √ | Q156: √ | R156: √ | S156: √
A157: =MAX(A$1:A156)+1 -> 134 | B157: 社保中心 | C157: 稳岗补贴申请 | D157: 稳岗补贴申请 | E157: 公共服务 | F157: 20 | G157: 即办 | H157: √ | J157: √ | L157: √ | N157: √ | O157: √ | P157: √ | Q157: √ | R157: √ | S157: √
A158: =MAX(A$1:A157)+1 -> 135 | B158: 社保中心 | C158: 创业补贴申请 | D158: 创业补贴申请 | E158: 公共服务 | F158: 20 | G158: 即办 | H158: √ | J158: √ | L158: √ | N158: √ | O158: √ | P158: √ | Q158: √ | R158: √ | S158: √
A159: =MAX(A$1:A158)+1 -> 136 | B159: 社保中心 | C159: 安置补贴申请 | D159: 安置补贴申请 | E159: 公共服务 | F159: 20 | G159: 即办 | H159: √ | J159: √ | L159: √ | N159: √ | O159: √ | P159: √ | Q159: √ | R159: √ | S159: √
A160: =MAX(A$1:A159)+1 -> 137 | B160: 社保中心 | C160: 失业人员技能提升补贴申请 | D160: 失业人员技能提升补贴申请 | E160: 公共服务 | F160: 20 | G160: 即办 | H160: √ | J160: √ | L160: √ | N160: √ | O160: √ | P160: √ | Q160: √ | R160: √ | S160: √
A161: =MAX(A$1:A160)+1 -> 138 | B161: 社保中心 | C161: 失业人员一次性生育补助金申请 | D161: 失业人员一次性生育补助金申请 | E161: 公共服务 | F161: 20 | G161: 即办 | H161: √ | J161: √ | L161: √ | N161: √ | O161: √ | P161: √ | Q161: √ | R161: √ | S161: √
A162: =MAX(A$1:A161)+1 -> 139 | B162: 社保中心 | C162: 失业人员丧葬补助金、一次性抚恤金申请 | D162: 失业人员丧葬补助金、一次性抚恤金申请 | E162: 公共服务 | F162: 20 | G162: 即办 | H162: √ | J162: √ | L162: √ | N162: √ | O162: √ | P162: √ | Q162: √ | R162: √ | S162: √
A163: =MAX(A$1:A162)+1 -> 140 | B163: 社保中心 | C163: 配置辅助器具确认 | D163: 配置辅助器具确认 | E163: 服务类 | F163: 20 | G163: 即办 | H163: √ | K163: √ | L163: √ | M163: √ | N163: √ | O163: √ | P163: √ | Q163: √ | R163: √
A164: =MAX(A$1:A163)+1 -> 141 | B164: 自然资源局 | C164: 勘察、开采矿藏和各项建设工程占用或者征收、征用林地审核 | D164: 勘察、开采矿藏和各项建设工程占用或者征收、征用林地审核 | E164: 审核转报（许可类） | F164: 20 | G164: 19 | H164: √ | L164: √ | R164: √
A165: =MAX(A$1:A164)+1 -> 142 | B165: 自然资源局 | C165: 采矿权转让审批 | D165: 采矿权转让审批 | E165: 行政许可 （自贸） | F165: 40 | G165: 30 | H165: √ | I165: √ | L165: √ | M165: √ | O165: √ | P165: √ | Q165: √ | R165: √ | S165: √
A166: =MAX(A$1:A165)+1 -> 143 | B166: 自然资源局 | C166: 土地开垦区内开发未确定使用权的国有土地从事生产审查 | D166: 在土地利用总体规划确定的开垦区内，一次性开发200公顷以上未确定土地使用权的国有荒山、荒地、荒滩从事种植业、林业、畜牧业和渔业生产许可 | E166: 行政许可 （自贸） | F166: 20 | G166: 15 | H166: √ | I166: √ | M166: √ | O166: √ | P166: √ | Q166: √ | R166: √ | S166: √
A167: =MAX(A$1:A166)+1 -> 144 | B167: 自然资源局 | C167: 探矿权转让审批 | D167: 探矿权、采矿权转让许可省级审批事项 | E167: 行政许可 （自贸） | F167: 40 | G167: 25 | H167: √ | I167: √ | L167: √ | M167: √ | O167: √ | P167: √ | Q167: √ | R167: √ | S167: √
A168: =MAX(A$1:A167)+1 -> 145 | B168: 自然资源局 | C168: 采矿权转让审批 | D168: 探矿权、采矿权转让许可省级审批事项 | E168: 行政许可 （自贸） | F168: 40 | G168: 30 | H168: √ | I168: √ | L168: √ | M168: √ | O168: √ | P168: √ | Q168: √ | R168: √ | S168: √
A169: =MAX(A$1:A168)+1 -> 146 | B169: 自然资源局 | C169: 从事测绘活动的单位乙、丙、丁级测绘资质审批审 | D169: 从事测绘活动的单位丙、丁级测绘资质审批 | E169: 行政许可 | F169: 20 | G169: 20 | H169: √ | I169: √ | J169: √ | L169: √ | M169: √ | O169: √ | P169: √ | Q169: √ | R169: √ | S169: √
A170: =MAX(A$1:A169)+1 -> 147 | B170: 自然资源局 | C170: 地图审核 | D170: 地图审核 | E170: 行政许可（自贸） | F170: 20 | G170: 20 | H170: √ | L170: √ | R170: √
A171: =MAX(A$1:A170)+1 -> 148 | B171: 自然资源局 | C171: 涉密基础测绘成果使用审批 | D171: 涉密基础测绘成果使用审批 | E171: 行政许可 | F171: 20 | G171: 10 | H171: √ | L171: √ | R171: √
A172: =MAX(A$1:A171)+1 -> 149 | B172: 自然资源局 | C172: 建立相对独立的平面坐标系统审批 | D172: 建立相对独立的平面坐标系统审批 | E172: 行政许可（自贸） | F172: 20 | G172: 20 | H172: √ | I172: √ | L172: √ | M172: √ | O172: √ | P172: √ | Q172: √ | R172: √ | S172: √
A173: =MAX(A$1:A172)+1 -> 150 | B173: 自然资源局 | C173: 拆迁永久性测量标志或者使永久性测量标志失去效能审批 | D173: 拆迁永久性测量标志或者使永久性测量标志失去效能审批 | E173: 行政许可（自贸） | F173: 20 | G173: 10 | H173: √ | I173: √ | L173: √ | M173: √ | O173: √ | P173: √ | Q173: √ | R173: √ | S173: √
A174: =MAX(A$1:A173)+1 -> 151 | B174: 自然资源局 | C174: 地图审核 | D174: 地图审核 | E174: 行政许可 | F174: 20 | G174: 20 | H174: √ | L174: √ | R174: √
A175: =MAX(A$1:A174)+1 -> 152 | B175: 自然资源局 | C175: 测绘作业证件核发 | D175: 测绘作业证件核发 | E175: 服务类 | F175: 20 | G175: 10 | H175: √ | I175: √ | J175: √ | L175: √ | M175: √ | O175: √ | P175: √ | Q175: √ | R175: √ | S175: √
A176: =MAX(A$1:A175)+1 -> 153 | B176: 自然资源局 | C176: 建设项目压覆重要矿产资源审批 | D176: 建设项目压覆重要矿产资源审批 | E176: 行政许可 （自贸） | F176: 20 | G176: 10 | H176: √ | I176: √ | L176: √ | M176: √ | O176: √ | P176: √ | Q176: √ | R176: √ | S176: √
A177: =MAX(A$1:A176)+1 -> 154 | B177: 自然资源局 | C177: 土地出让金的征收 | D177: 土地出让金的征收 | E177: 服务类 | F177: 20 | G177: 即办 | H177: √ | J177: √ | L177: √ | N177: √ | P177: √ | Q177: √ | R177: √ | S177: √
A178: =MAX(A$1:A177)+1 -> 155 | B178: 自然资源局 | C178: 采矿权新立、延续、变更、注销登记 | D178: 采矿权新立审批 | E178: 行政许可 | F178: 40 | G178: 27 | H178: √ | I178: √ | L178: √ | M178: √ | O178: √ | P178: √ | Q178: √ | R178: √ | S178: √
D179: 采矿权延续审批 | E179: 行政许可 | F179: 40 | G179: 15 | H179: √ | I179: √ | L179: √ | M179: √ | O179: √ | P179: √ | Q179: √ | R179: √ | S179: √
D180: 采矿权变更审批 | E180: 行政许可 | F180: 40 | G180: 15 | H180: √ | I180: √ | L180: √ | M180: √ | O180: √ | P180: √ | Q180: √ | R180: √ | S180: √
D181: 采矿权注销和闭坑审批 | E181: 行政许可 | F181: 40 | G181: 15 | H181: √ | I181: √ | L181: √ | M181: √ | O181: √ | P181: √ | Q181: √ | R181: √ | S181: √
A182: =MAX(A$1:A181)+1 -> 156 | B182: 自然资源局 | C182: 开采矿产资源划定矿区范围批准 | D182: 开采矿产资源划定矿区范围批准 | E182: 行政许可 | F182: 30 | G182: 20 | H182: √ | I182: √ | L182: √ | M182: √ | O182: √ | P182: √ | Q182: √ | R182: √ | S182: √
A183: =MAX(A$1:A182)+1 -> 157 | B183: 自然资源局 | C183: 土地开垦区内开发未确定使用权的国有土地从事生产审查 | D183: 土地开垦区内开发未确定使用权的国有土地从事生产审查 | E183: 行政许可 | F183: 20 | G183: 15 | H183: √ | I183: √ | M183: √ | O183: √ | P183: √ | Q183: √ | R183: √ | S183: √
A184: =MAX(A$1:A183)+1 -> 158 | B184: 自然资源局 | C184: 建设项目用地预审 | D184: 建设项目用地预审 | E184: 行政许可 | F184: 20 | G184: 10 | H184: √ | I184: √ | L184: √ | M184: √ | O184: √ | P184: √ | Q184: √ | R184: √ | S184: √
A185: =MAX(A$1:A184)+1 -> 159 | B185: 自然资源局 | C185: 地质灾害危险性评估单位和治理工程勘查、设计、施工、监理单位资质审批 | D185: 地质灾害危险性评估单位丙级资质证书核发（新办） | E185: 行政许可 | F185: 20 | G185: 15 | H185: √ | I185: √ | L185: √ | M185: √ | O185: √ | P185: √ | Q185: √ | R185: √ | S185: √
D186: 地质灾害危险性评估单位丙级资质证书核发（延续） | E186: 行政许可 | F186: 20 | G186: 15 | H186: √ | I186: √ | L186: √ | M186: √ | O186: √ | P186: √ | Q186: √ | R186: √ | S186: √
D187: 地质灾害危险性评估单位丙级资质证书核发（升级） | E187: 行政许可 | F187: 20 | G187: 15 | H187: √ | I187: √ | L187: √ | M187: √ | O187: √ | P187: √ | Q187: √ | R187: √ | S187: √
D188: 地质灾害危险性评估单位丙级资质证书核发（变更） | E188: 行政许可 | F188: 20 | G188: 6 | H188: √ | I188: √ | L188: √ | M188: √ | O188: √ | P188: √ | Q188: √ | R188: √ | S188: √
D189: 地质灾害危险性评估单位丙级资质证书核发（遗失补办） | E189: 行政许可 | F189: 20 | G189: 6 | H189: √ | I189: √ | L189: √ | M189: √ | O189: √ | P189: √ | Q189: √ | R189: √ | S189: √
D190: 地质灾害危险性评估单位丙级资质证书核发（注销） | E190: 行政许可 | F190: 20 | G190: 6 | H190: √ | I190: √ | L190: √ | M190: √ | O190: √ | P190: √ | Q190: √ | R190: √ | S190: √
D191: 地质灾害治理工程勘查单位丙级资质证书核发（新办） | E191: 行政许可 | F191: 20 | G191: 15 | H191: √ | I191: √ | L191: √ | M191: √ | O191: √ | P191: √ | Q191: √ | R191: √ | S191: √
D192: 地质灾害治理工程勘查单位丙级资质证书核发（延续） | E192: 行政许可 | F192: 20 | G192: 15 | H192: √ | I192: √ | L192: √ | M192: √ | O192: √ | P192: √ | Q192: √ | R192: √ | S192: √
D193: 地质灾害治理工程勘查单位丙级资质证书核发（升级） | E193: 行政许可 | F193: 20 | G193: 15 | H193: √ | I193: √ | L193: √ | M193: √ | O193: √ | P193: √ | Q193: √ | R193: √ | S193: √
D194: 地质灾害治理工程勘查单位丙级资质证书核发（变更） | E194: 行政许可 | F194: 20 | G194: 6 | H194: √ | I194: √ | L194: √ | M194: √ | O194: √ | P194: √ | Q194: √ | R194: √ | S194: √
D195: 地质灾害治理工程勘查单位丙级资质证书核发（遗失补办） | E195: 行政许可 | F195: 20 | G195: 6 | H195: √ | I195: √ | L195: √ | M195: √ | O195: √ | P195: √ | Q195: √ | R195: √ | S195: √
D196: 地质灾害治理工程勘查单位丙级资质证书核发（注销） | E196: 行政许可 | F196: 20 | G196: 6 | H196: √ | I196: √ | L196: √ | M196: √ | O196: √ | P196: √ | Q196: √ | R196: √ | S196: √
D197: 地质灾害治理工程设计单位丙级资质证书核发（新办） | E197: 行政许可 | F197: 20 | G197: 15 | H197: √ | I197: √ | L197: √ | M197: √ | O197: √ | P197: √ | Q197: √ | R197: √ | S197: √
D198: 地质灾害治理工程设计单位丙级资质证书核发（延续） | E198: 行政许可 | F198: 20 | G198: 15 | H198: √ | I198: √ | L198: √ | M198: √ | O198: √ | P198: √ | Q198: √ | R198: √ | S198: √
D199: 地质灾害治理工程设计单位丙级资质证书核发（升级） | E199: 行政许可 | F199: 20 | G199: 15 | H199: √ | I199: √ | L199: √ | M199: √ | O199: √ | P199: √ | Q199: √ | R199: √ | S199: √
D200: 地质灾害治理工程设计单位丙级资质证书核发（变更） | E200: 行政许可 | F200: 20 | G200: 6 | H200: √ | I200: √ | L200: √ | M200: √ | O200: √ | P200: √ | Q200: √ | R200: √ | S200: √
D201: 地质灾害治理工程设计单位丙级资质证书核发（遗失补办） | E201: 行政许可 | F201: 20 | G201: 6 | H201: √ | I201: √ | L201: √ | M201: √ | O201: √ | P201: √ | Q201: √ | R201: √ | S201: √
... 799 more rows
